[Event "SVK Extraliga 2019-20"]
[Site "Slovakia"]
[Date "2019.10.20"]
[Round "2.7"]
[White "Macko, Peter"]
[Black "Wiewiora, Eneasz"]
[Result "1/2-1/2"]
[ECO "B00"]
[WhiteElo "2054"]
[BlackElo "2298"]
[Annotator "NA"]
[PlyCount "70"]
[EventDate "2019.10.19"]
[EventType "team-tourn"]
[EventCountry "SVK"]
[SourceTitle "playchess.com"]
[Source "ChessBase"]
[SourceQuality "1"]
[BlackTeam "Dubnica"]
[TimeControl "40/5400+30:1800+30"]

1. e4 {[%emt 0:03:52]} d6 {[%emt 0:00:00]} 2. Nc3 {[%emt 0:00:49]} Nf6 {[%emt 0:00:19]} 3. f4 {[%emt 0:03:35]} g6 {[%emt 0:00:11]} 4. Nf3 {[%emt 0:00:32]} Bg7 {[%emt 0:00:05]} 5. Bc4 {[%emt 0:00:12]} Nxe4 {[%emt 0:07:07]} 6. Bxf7+ {[%emt 0:01:10]} Kxf7 {[%emt 0:00:15]} 7. Nxe4 {[%emt 0:00:05]} Rf8 {[%emt 0:00:28]} 8. d4 {[%emt 0:06:28]} Kg8 {[%emt 0:01:21]} 9. O-O {[%emt 0:00:49]} d5 {[%emt 0:25:21]} 10. Nc5 {[%emt 0:02:58]} b6 {[%emt 0:01:27]} 11. Nd3 {[%emt 0:00:49]} Nc6 {[%emt 0:00:08]} 12. c3 {[%emt 0:07:03]} Bf5 {[%emt 0:03:17]} 13. Be3 {[%emt 0:24:28]} e6 {[%emt 0:03:26]} 14. Qe2 {[%emt 0:02:37]} a5 {[%emt 0:06:35]} 15. Rad1 {[%emt 0:08:44]} Be4 $16 {[%emt 0:15:36]} 16. Bc1 {[%emt 0:01:25]} Qd7 {[%emt 0:03:35]} 17. Ng5 {[%emt 0:07:06]} Bxd3 18. Qxd3 {[%emt 0:03:32]} Rae8 {[%emt 0:05:05]} 19. Rde1 {[%emt 0:01:00]} Nd8 {[%emt 0:04:19]} 20. b3 {[%emt 0:07:15]} Nf7 {[%emt 0:04:12]} 21. Ba3 {[%emt 0:01:23]} Nd6 {[%emt 0:00:31]} 22. Qh3 {[%emt 0:05:43]} h6 {[%emt 0:02:01]} 23. Nxe6 {[%emt 0:02:19]} Rf6 {[%emt 0:01:19]} 24. Bxd6 {[%emt 0:03:50]} Qxd6 {[%emt 0:00:15]} 25. Nxg7 {[%emt 0:00:21]} Rxe1 {[%emt 0:00:07]} 26. Rxe1 {[%emt 0:00:35]} Qxf4 {[%emt 0:01:02]} 27. Qe3 {[%emt 0:04:11]} Qxe3+ {[%emt 0:01:31]} 28. Rxe3 {[%emt 0:00:03]} Kxg7 {[%emt 0:00:02]} 29. Re7+ {[%emt 0:00:23]} Rf7 {[%emt 0:00:01]} 30. Re5 {[%emt 0:01:03]} c6 {[%emt 0:01:47]} 31. Re6 {[%emt 0:00:05]} Rf6 {[%emt 0:01:59]} 32. Re7+ {[%emt 0:00:02]} Rf7 {[%emt 0:00:28]} 33. Re6 {[%emt 0:00:05]} Rf6 {[%emt 0:00:41]} 34. Re7+ {[%emt 0:00:12]} Rf7 {[%emt 0:00:08]} 35. Re6 {[%emt 0:01:19]} Rf6 {[%emt 0:01:01]} 1/2-1/2

[Event "SVK Extraliga 2019-20"]
[Site "Slovakia"]
[Date "2019.10.20"]
[Round "2.8"]
[White "Farkas, Gabor"]
[Black "Klemanic, Emil"]
[Result "1/2-1/2"]
[ECO "C41"]
[WhiteElo "2355"]
[BlackElo "2108"]
[Annotator "NA"]
[PlyCount "121"]
[EventDate "2019.10.19"]
[EventType "team-tourn"]
[EventCountry "SVK"]
[SourceTitle "playchess.com"]
[Source "ChessBase"]
[SourceQuality "1"]
[WhiteTeam "Streda"]
[TimeControl "40/5400+30:1800+30"]

1. e4 {[%emt 0:00:00]} d6 {[%emt 0:00:00]} 2. d4 {[%emt 0:00:00]} Nf6 {[%emt 0:00:00]} 3. Nc3 {[%emt 0:00:00]} e5 {[%emt 0:00:00]} 4. Nf3 {[%emt 0:01:09]} Nbd7 {[%emt 0:00:00]} 5. Bc4 {[%emt 0:00:11]} Be7 {[%emt 0:00:00]} 6. O-O {[%emt 0:00:17]} c6 {[%emt 0:00:00]} 7. a4 {[%emt 0:00:09]} O-O {[%emt 0:00:20]} 8. Ba2 {[%emt 0:00:06]} b6 {[%emt 0:00:44]} 9. Re1 {[%emt 0:02:18]} a6 {[%emt 0:00:14]} 10. dxe5 {[%emt 0:01:05] C41: Philidor Defence} (10. Be3 Ng4 11. Bd2 Ngf6 12. dxe5 dxe5 13. Nh4 Bb4 14. Qf3 Nc5 15. Bg5 Ne6 16. Bxe6 fxe6 17. Qg3 Qc7 {1-0 (37) Shirov,A (2712)-Laznicka,V (2676) Poikovsky 2015}) 10... dxe5 {[%emt 0:00:44]} 11. Nh4 {[%emt 0:13:59]} Nc5 {[%emt 0:20:34]} 12. Nf5 $146 {[%emt 0:12:59]} ({Predecessor:} 12. Qf3 a5 13. Nf5 Bxf5 14. Qxf5 Qc7 15. Be3 Rad8 16. Rad1 Rxd1 17. Rxd1 Rd8 {1-0 (71) Fier,A (2572)-Cyborowski,L (2526) Germany 2014}) 12... Bxf5 {[%emt 0:04:18]} 13. Qxd8 {[%emt 0:01:02]} Raxd8 {[%emt 0:05:49]} 14. exf5 {[%emt 0:00:15]} Rfe8 {[%emt 0:04:44]} 15. Bg5 {[%emt 0:06:57]} h6 {[%emt 0:02:44]} 16. Bh4 {[%emt 0:05:00]} Nh5 {[%emt 0:01:26]} 17. Bxe7 {[%emt 0:00:56]} Rxe7 {[%emt 0:00:05]} 18. b4 {[%emt 0:01:41]} Nb7 {[%emt 0:00:40]} 19. Bc4 {[%emt 0:02:01]} Rd2 {[%emt 0:16:02]} 20. Re2 {[%emt 0:03:15]} Rd4 {[%emt 0:04:16]} 21. Bxa6 {[%emt 0:03:00]} Rxb4 {[%emt 0:00:30]} 22. Bxb7 {[%emt 0:04:47]} Rxb7 {[%emt 0:02:24]} 23. Rxe5 {[%emt 0:00:15]} Nf6 {[%emt 0:04:34]} 24. Rd1 {[%emt 0:05:27]} Rc4 {[%emt 0:00:38]} 25. Re3 {[%emt 0:02:11]} Rf4 {[%emt 0:05:25]} 26. Rd6 {[%emt 0:04:05]} Rc7 {[%emt 0:02:18]} 27. Rf3 {[%emt 0:03:46]} Rxf3 {[%emt 0:01:13]} 28. gxf3 {[%emt 0:00:10]} Kf8 {[%emt 0:00:42]} 29. Rd8+ {[%emt 0:03:19]} Ke7 {[%emt 0:02:06]} 30. Rb8 $11 {[%emt 0:00:27]} Nd7 {[%emt 0:04:57]} 31. Rg8 {[%emt 0:02:06]} Kf6 {[%emt 0:00:43]} 32. Ne4+ {[%emt 0:00:43]} Kxf5 {[%emt 0:00:12]} 33. Rxg7 {[%emt 0:02:26]} Ne5 {[%emt 0:00:17]} 34. Kg2 {[%emt 0:01:41]} Ra7 {[%emt 0:03:00]} 35. Ng3+ {[%emt 0:12:54]} Kf6 {[%emt 0:03:58]} 36. Nh5+ {[%emt 0:00:06]} Ke6 {[%emt 0:02:55]} 37. Rh7 {[%emt 0:02:09]} Rxa4 {[%emt 0:02:02]} 38. Rxh6+ {[%emt 0:02:52]} Ng6 {[%emt 0:00:39]} 39. Kg3 {[%emt 0:01:32]} Rc4 {[%emt 0:04:44]} 40. f4 {[%emt 0:01:13]} Rxc2 {[%emt 0:02:02]} 41. Kg4 {[%emt 0:31:28]} Kd5 {[%emt 0:01:41]} 42. Rh7 {[%emt 0:00:00]} Rxf2 {[%emt 0:02:09]} 43. Kg3 {[%emt 0:00:00]} Rf1 {[%emt 0:02:38]} 44. Rxf7 {[%emt 0:00:00]} b5 {[%emt 0:00:33]} 45. Kg2 {[%emt 0:00:00]} Rc1 {[%emt 0:00:54]} 46. f5 {[%emt 0:00:00]} Ne5 {[%emt 0:00:08]} 47. Re7 {[%emt 0:00:00]} Rc2+ {[%emt 0:04:18]} 48. Kg3 {[%emt 0:00:00]} Rc3+ {[%emt 0:00:43]} 49. Kg2 {[%emt 0:00:00]} Rc2+ {[%emt 0:00:21]} 50. Kg3 {[%emt 0:00:00]} Rc3+ {[%emt 0:00:04]} 51. Kf4 {[%emt 0:00:00]} Rc4+ {[%emt 0:00:27]} 52. Kg5 {[%emt 0:00:00]} Nf3+ {[%emt 0:00:44]} 53. Kg6 {[%emt 0:00:00]} Nh4+ {[%emt 0:00:06]} 54. Kf6 {[%emt 0:00:00]} b4 {[%emt 0:00:28]} 55. Rd7+ {[%emt 0:00:00]} Kc5 {[%emt 0:01:01]} 56. Rb7 {[%emt 0:00:00]} Nxf5 {[%emt 0:02:01]} 57. Kxf5 {[%emt 0:00:00]} Rh4 {[%emt 0:00:04]} 58. Nf4 {[%emt 0:00:00]} Rxh2 {[%emt 0:00:30]} 59. Nd3+ {[%emt 0:00:11]} Kc4 {[%emt 0:00:17]} 60. Nxb4 {[%emt 0:00:20]} Rb2 {[%emt 0:00:19]} 61. Ke4 1/2-1/2

[Event "SVK Extraliga 2019-20"]
[Site "Slovakia"]
[Date "2019.10.20"]
[Round "2.8"]
[White "Straka, Jozef"]
[Black "Macko, Michal"]
[Result "1/2-1/2"]
[ECO "E21"]
[WhiteElo "2307"]
[BlackElo "2155"]
[Annotator "NA"]
[PlyCount "67"]
[EventDate "2019.10.19"]
[EventType "team-tourn"]
[EventCountry "SVK"]
[SourceTitle "playchess.com"]
[Source "ChessBase"]
[SourceQuality "1"]
[BlackTeam "Liptovska"]
[TimeControl "40/5400+30:1800+30"]

1. d4 {[%emt 0:00:00]} Nf6 {[%emt 0:00:00]} 2. c4 {[%emt 0:00:00]} e6 {[%emt 0:00:00]} 3. Nc3 {[%emt 0:00:43]} Bb4 {[%emt 0:00:00]} 4. Nf3 {[%emt 0:01:26]} c5 {[%emt 0:03:10]} 5. e3 {[%emt 0:01:26]} O-O {[%emt 0:00:48]} 6. Bd2 {[%emt 0:00:42] E50: Nimzo-Indian: Rubinstein: 4...0-0 5 Nf3} (6. Bd3 b6 7. O-O Bb7 8. Qe2 d5 9. cxd5 cxd4 10. exd4 Bxc3 11. bxc3 Qxd5 12. c4 Qh5 13. Ne5 Qh4 14. f4 Nc6 15. Bb2 Rad8 16. Rad1 Rfe8 17. Bb1 Qh5 18. Qe1 Ng4 19. h3 Ngxe5 20. fxe5 {1-0 (57) Laznicka,V (2662)-Yu,Y (2765) Batumi 2018}) 6... d6 {[%emt 0:00:44]} 7. Qc2 {[%emt 0:01:28]} Nc6 {[%emt 0:00:41]} 8. Bd3 {[%emt 0:04:03]} Qe7 {[%emt 0:02:37]} 9. a3 {[%emt 0:16:07]} Ba5 {[%emt 0:00:25]} 10. O-O {[%emt 0:01:40]} h6 {[%emt 0:05:36]} 11. Rab1 {[%emt 0:11:26]} a6 $146 {[%emt 0:03:57]} ({Predecessor:} 11... Re8 12. Rfd1 Rb8 13. dxc5 dxc5 14. Ne4 Bxd2 15. Rxd2 {0-1 (34) Scekic,M (2355)-Nagrocka,E (2165) Kopaonik 1995}) 12. Rfd1 {[%emt 0:04:31]} cxd4 {[%emt 0:09:12]} 13. exd4 {[%emt 0:01:15]} Bb6 {[%emt 0:00:11]} 14. Be3 {[%emt 0:02:42]} Ng4 {[%emt 0:00:27]} 15. b4 {[%emt 0:02:18]} Nxe3 {[%emt 0:04:57]} 16. fxe3 {[%emt 0:00:03]} Rd8 {[%emt 0:11:24]} 17. c5 {[%emt 0:02:44]} Bc7 {[%emt 0:03:13]} 18. cxd6 {[%emt 0:15:47]} Bxd6 {[%emt 0:03:05]} 19. Ne4 {[%emt 0:00:11]} Bd7 {[%emt 0:01:46]} 20. Nxd6 {[%emt 0:02:35]} Qxd6 {[%emt 0:00:07]} 21. Qc5 {[%emt 0:01:22]} Be8 $11 {[%emt 0:01:29]} 22. Qxd6 {[%emt 0:15:40]} Rxd6 {[%emt 0:00:28]} 23. Nd2 {[%emt 0:00:09]} Ne7 {[%emt 0:03:34]} 24. Nc4 {[%emt 0:02:49]} Rc6 {[%emt 0:04:31]} 25. Na5 {[%emt 0:05:01]} Rc7 {[%emt 0:00:15]} 26. Be4 {[%emt 0:01:18]} Nd5 {[%emt 0:00:12]} 27. Bxd5 {[%emt 0:03:59]} exd5 {[%emt 0:00:06]} 28. Rdc1 {[%emt 0:00:27]} Rac8 {[%emt 0:00:14]} 29. Nb3 {[%emt 0:01:04]} Bb5 {[%emt 0:06:10]} 30. Rxc7 {[%emt 0:01:10]} Rxc7 {[%emt 0:00:08]} 31. Rc1 {[%emt 0:00:10]} Rxc1+ {[%emt 0:00:45]} 32. Nxc1 {[%emt 0:00:02]} Bc4 {[%emt 0:00:11]} 33. Kf2 {[%emt 0:01:01]} Kf8 {[%emt 0:00:07]} 34. Ne2 {[%emt 0:00:51]} 1/2-1/2

[Event "SVK Extraliga 2019-20"]
[Site "Slovakia"]
[Date "2019.10.20"]
[Round "2.8"]
[White "Bombek, Peter"]
[Black "Striskova, Lucia"]
[Result "1-0"]
[ECO "D78"]
[WhiteElo "2171"]
[BlackElo "1496"]
[Annotator "ChessBase"]
[PlyCount "63"]
[EventDate "2019.10.19"]
[EventType "team-tourn"]
[EventCountry "SVK"]
[SourceTitle "playchess.com"]
[Source "ChessBase"]
[SourceQuality "1"]
[WhiteTeam "Dubnica"]
[TimeControl "40/5400+30:1800+30"]

1. d4 {[%emt 0:00:00]} Nf6 {[%emt 0:00:00]} 2. Nf3 {[%emt 0:00:00]} g6 {[%emt 0:00:31]} 3. g3 {[%emt 0:00:00]} Bg7 {[%emt 0:00:13]} 4. Bg2 {[%emt 0:00:00]} O-O {[%emt 0:00:22]} 5. O-O {[%emt 0:00:05]} d5 {[%emt 0:01:36]} 6. c4 {[%emt 0:00:54]} c6 {[%emt 0:00:31]} 7. Qb3 {[%emt 0:03:25]} e6 {[%emt 0:05:23]} 8. Bf4 {[%emt 0:02:20]} Qb6 {[%emt 0:05:00]} 9. c5 {[%emt 0:02:40]} Qd8 {[%emt 0:17:13]} 10. Nbd2 {[%emt 0:04:59]} Nbd7 {[%emt 0:00:36]} 11. Bd6 {[%emt 0:05:59]} Re8 {[%emt 0:00:44]} 12. Qd3 {[%emt 0:04:46]} Nh5 {[%emt 0:03:23]} 13. Ne5 {[%emt 0:09:21]} Nhf6 {[%emt 0:04:36]} 14. b4 {[%emt 0:03:49]} b6 {[%emt 0:07:26]} 15. Nxc6 {[%emt 0:00:32]} Nxc5 {[%emt 0:00:16]} 16. bxc5 {[%emt 0:02:02]} Qd7 {[%emt 0:00:14]} 17. Ne5 {[%emt 0:01:34]} Qd8 {[%emt 0:00:17]} 18. Rab1 {[%emt 0:03:06]} bxc5 {[%emt 0:01:43]} 19. Bxc5 {[%emt 0:04:01]} Nd7 {[%emt 0:03:02]} 20. Nxd7 {[%emt 0:01:16]} Bxd7 {[%emt 0:00:15]} 21. e4 {[%emt 0:03:12]} Bc6 {[%emt 0:00:59]} 22. Rfc1 {[%emt 0:09:34]} dxe4 {[%emt 0:05:18]} 23. Bxe4 {[%emt 0:01:17]} Bxe4 {[%emt 0:00:19]} 24. Nxe4 {[%emt 0:02:03]} Qd5 {[%emt 0:01:22]} 25. Nc3 {[%emt 0:06:23]} Qd7 {[%emt 0:00:51]} 26. Qe4 {[%emt 0:03:47]} a6 {[%emt 0:02:24]} 27. Rb7 {[%emt 0:03:49]} Qd8 {[%emt 0:01:25]} 28. Qf4 {[%emt 0:01:51]} f6 {[%emt 0:01:02]} 29. Rcb1 {[%emt 0:02:14]} Qa5 {[%emt 0:00:49]} 30. Rxg7+ {[%emt 0:02:34]} Kxg7 {[%emt 0:00:37]} 31. Rb7+ {[%emt 0:00:12]} Kg8 {[%emt 0:02:33]} 32. Qh6 {[%emt 0:01:05]} 1-0

[Event "SVK Extraliga 2019-20"]
[Site "Slovakia"]
[Date "2019.10.20"]
[Round "2.8"]
[White "Szucs, Vladimir"]
[Black "Pcola, Jaroslav"]
[Result "1/2-1/2"]
[ECO "A35"]
[WhiteElo "2158"]
[BlackElo "2082"]
[Annotator "ChessBase"]
[PlyCount "73"]
[EventDate "2019.10.19"]
[EventType "team-tourn"]
[EventCountry "SVK"]
[SourceTitle "playchess.com"]
[Source "ChessBase"]
[SourceQuality "1"]
[WhiteTeam "Podhajska"]
[TimeControl "40/5400+30:1800+30"]

1. Nf3 {[%emt 0:00:00]} Nf6 {[%emt 0:02:53]} 2. c4 {[%emt 0:00:27]} c5 {[%emt 0:00:57]} 3. Nc3 {[%emt 0:00:50]} Nc6 {[%emt 0:01:07]} 4. d4 {[%emt 0:00:27]} cxd4 {[%emt 0:01:32]} 5. Nxd4 {[%emt 0:00:28]} g6 {[%emt 0:02:59]} 6. e4 {[%emt 0:00:45]} d6 {[%emt 0:05:07]} 7. Be2 {[%emt 0:00:42]} Bg7 {[%emt 0:03:04]} 8. Be3 {[%emt 0:00:39]} O-O {[%emt 0:02:18]} 9. O-O {[%emt 0:00:21]} Bd7 {[%emt 0:04:07]} 10. Qd2 {[%emt 0:00:45]} Nxd4 {[%emt 0:01:47]} 11. Bxd4 {[%emt 0:00:12]} Bc6 {[%emt 0:01:17]} 12. f3 {[%emt 0:00:26]} Qa5 {[%emt 0:02:20]} 13. Rab1 {[%emt 0:08:36]} Rfc8 {[%emt 0:02:51]} 14. Rfd1 {[%emt 0:10:46]} Qd8 {[%emt 0:02:18]} 15. b4 {[%emt 0:14:15]} b6 {[%emt 0:03:21]} 16. Rbc1 {[%emt 0:05:37]} Qf8 {[%emt 0:02:27]} 17. Be3 {[%emt 0:01:44]} h5 {[%emt 0:00:23]} 18. Rc2 {[%emt 0:01:36]} Kh7 {[%emt 0:09:45]} 19. Rdc1 {[%emt 0:01:54]} Nd7 {[%emt 0:08:43]} 20. g3 {[%emt 0:08:07]} Bb7 {[%emt 0:02:44]} 21. Nd5 {[%emt 0:01:59]} Bc6 {[%emt 0:08:38]} 22. Bg5 {[%emt 0:05:18]} e6 {[%emt 0:15:39]} 23. Nc3 {[%emt 0:07:39]} f5 {[%emt 0:01:33]} 24. exf5 {[%emt 0:04:00]} Qxf5 {[%emt 0:01:04]} 25. f4 {[%emt 0:01:43]} e5 {[%emt 0:06:37]} 26. Nd5 {[%emt 0:05:09]} exf4 27. Bxf4 {[%emt 0:05:24]} Ne5 {[%emt 0:04:52]} 28. Rf1 {[%emt 0:05:18]} Qe4 {[%emt 0:02:24]} 29. Bxe5 Qxe5 {[%emt 0:00:21]} 30. Bf3 {[%emt 0:03:45]} Rf8 {[%emt 0:00:27]} 31. Qd3 {[%emt 0:01:56]} Rae8 {[%emt 0:01:02]} 32. Kg2 {[%emt 0:03:10]} Qd4 33. Qxd4 {[%emt 0:00:27]} Bxd4 {[%emt 0:00:46]} 34. Re2 {[%emt 0:00:45]} Rxe2+ {[%emt 0:00:15]} 35. Bxe2 {[%emt 0:00:04]} Rxf1 {[%emt 0:00:51]} 36. Kxf1 {[%emt 0:00:17]} Bxd5 37. cxd5 {[%emt 0:00:04]} 1/2-1/2

[Event "SVK Extraliga 2019-20"]
[Site "Slovakia"]
[Date "2019.10.20"]
[Round "2.8"]
[White "Magat, Jozef"]
[Black "Kusiak, Matej"]
[Result "1-0"]
[ECO "C01"]
[WhiteElo "2103"]
[BlackElo "2256"]
[Annotator "NA"]
[PlyCount "111"]
[EventDate "2019.10.19"]
[EventType "team-tourn"]
[EventCountry "SVK"]
[SourceTitle "playchess.com"]
[Source "ChessBase"]
[SourceQuality "1"]
[WhiteTeam "Dunajov"]
[BlackTeam "Prakovce"]
[TimeControl "40/5400+30:1800+30"]

1. d4 {[%emt 0:00:00]} e6 {[%emt 0:00:00]} 2. e4 {[%emt 0:01:34]} d5 {[%emt 0:00:00]} 3. exd5 {[%emt 0:01:17]} exd5 {[%emt 0:00:00]} 4. Bd3 {[%emt 0:00:24]} Nc6 {[%emt 0:00:24]} 5. c3 {[%emt 0:00:32]} Bd6 {[%emt 0:00:11]} 6. Nf3 {[%emt 0:00:15]} Nge7 {[%emt 0:00:09]} 7. Bg5 {[%emt 0:00:30]} Bg4 {[%emt 0:00:29]} 8. Nbd2 {[%emt 0:00:54] C01: French: Exchange Variation} Qd7 {[%emt 0:00:35]} 9. Qc2 {[%emt 0:01:11]} Bf5 {[%emt 0:02:16]} 10. O-O-O {[%emt 0:03:14]} (10. O-O Bxd3 11. Qxd3 O-O 12. Rfe1 Rfe8 13. Bh4 Qf5 14. Qxf5 Nxf5 15. Bg3 f6 {½-½ (52) Salgado Lopez,I (2616)-Vallejo Pons,F (2686) Madrid 2015}) 10... f6 {[%emt 0:01:03]} 11. Bh4 {[%emt 0:00:57]} Bxd3 {[%emt 0:10:27]} 12. Qxd3 {[%emt 0:03:17]} Qf5 {[%emt 0:02:47]} 13. Qxf5 {[%emt 0:01:22]} Nxf5 {[%emt 0:00:06]} 14. Rde1+ {[%emt 0:01:14]} Kd7 $146 {[%emt 0:00:09]} ({Predecessor:} 14... Kf7 15. Bg3 Nxg3 16. hxg3 {1-0 (50) Piqueras Mateo,P (1990)-Gonzalez Garcia,M (2075) Spain 1999}) 15. Bg3 {[%emt 0:00:19]} a5 {[%emt 0:01:06]} 16. Bxd6 {[%emt 0:02:40]} Nxd6 {[%emt 0:00:07]} 17. h4 {[%emt 0:02:54]} b5 {[%emt 0:00:12]} 18. Nb3 {[%emt 0:06:02]} Ne4 {[%emt 0:00:40] [#]} (18... Nb7 $11 {remains equal.}) 19. Nfd2 $1 {[%emt 0:02:59]} Nxf2 {[%emt 0:06:24]} 20. Nc5+ {[%emt 0:00:17]} Kc8 {[%emt 0:00:04]} 21. Rhf1 {[%emt 0:01:15]} Ng4 {[%emt 0:00:06]} 22. Re6 {[%emt 0:01:44]} Nd8 {[%emt 0:00:40]} 23. Re7 {[%emt 0:02:14]} g6 {[%emt 0:08:08]} 24. Rfe1 {[%emt 0:07:59]} f5 {[%emt 0:14:20]} 25. Rg7 {[%emt 0:07:26]} Nf6 {[%emt 0:21:31]} 26. Ree7 {[%emt 0:05:39]} Ne8 {[%emt 0:00:09]} 27. Rxh7 {[%emt 0:00:57]} Rg8 {[%emt 0:00:15]} 28. Nf3 {[%emt 0:01:27]} Nc6 {[%emt 0:04:24]} 29. Ref7 {[%emt 0:12:02]} Nd8 $18 {[%emt 0:00:09]} 30. Rd7 {[%emt 0:02:08]} Ra7 {[%emt 0:01:37]} 31. Ne5 {[%emt 0:07:42]} Nf6 {[%emt 0:01:55]} 32. Rhg7 {[%emt 0:11:02]} Nxd7 {[%emt 0:03:38]} 33. Rxg8 {[%emt 0:00:30]} Nxe5 {[%emt 0:00:13]} 34. dxe5 {[%emt 0:00:13]} c6 {[%emt 0:00:12]} 35. Ne6 {[%emt 0:05:58]} Rd7 {[%emt 0:00:05]} 36. Nxd8 {[%emt 0:00:37]} Rxd8 {[%emt 0:00:06]} 37. Rxg6 {[%emt 0:00:04]} Kc7 {[%emt 0:00:15]} 38. h5 {[%emt 0:01:03]} Re8 {[%emt 0:02:14]} 39. e6 {[%emt 0:01:23]} Kd6 {[%emt 0:00:13]} 40. h6 {[%emt 0:00:46]} Rh8 {[%emt 0:03:15]} 41. g3 {[%emt 0:33:12]} Rh7 {[%emt 0:32:01]} 42. e7+ {[%emt 0:00:00]} Kxe7 {[%emt 0:00:00]} 43. Rxc6 {[%emt 0:00:00]} Kf7 {[%emt 0:00:00]} 44. Kd2 {[%emt 0:00:00]} Rh8 {[%emt 0:00:00]} 45. Ke3 {[%emt 0:00:00]} Rg8 {[%emt 0:00:00]} 46. Kf4 {[%emt 0:00:00]} Rd8 {[%emt 0:00:00]} 47. Kxf5 {[%emt 0:00:00]} b4 {[%emt 0:00:00]} 48. g4 {[%emt 0:00:00]} bxc3 {[%emt 0:00:00]} 49. bxc3 {[%emt 0:00:00]} d4 {[%emt 0:00:00]} 50. Rc7+ {[%emt 0:00:00]} Kg8 {[%emt 0:00:00]} 51. cxd4 {[%emt 0:00:00]} Rxd4 {[%emt 0:00:00]} 52. g5 {[%emt 0:00:00]} Rd5+ {[%emt 0:00:00]} 53. Kg6 {[%emt 0:00:00]} Rd6+ {[%emt 0:00:00]} 54. Kh5 {[%emt 0:00:00]} Rd5 {[%emt 0:00:00]} 55. h7+ {[%emt 0:00:10]} Kh8 {[%emt 0:00:00]} 56. Kh6 {[%emt 0:00:25]} 1-0

[Event "SVK Extraliga 2019-20"]
[Site "Slovakia"]
[Date "2019.11.23"]
[Round "3"]
[White "Markos, Jan"]
[Black "Pechac, Jergus"]
[Result "1-0"]
[ECO "E92"]
[WhiteElo "2571"]
[BlackElo "2482"]
[Annotator "ChessBase"]
[PlyCount "55"]
[EventDate "2019.10.19"]
[EventType "team-tourn"]
[EventCountry "SVK"]
[SourceTitle "playchess.com"]
[Source "ChessBase"]
[SourceQuality "1"]
[WhiteTeam "Snina"]
[BlackTeam "Zilina"]
[TimeControl "40/5400+30:1800+30"]

1. d4 {[%emt 0:00:00]} Nf6 {[%emt 0:00:00]} 2. c4 {[%emt 0:00:00]} g6 {[%emt 0:00:00]} 3. Nc3 {[%emt 0:00:43]} Bg7 {[%emt 0:00:00]} 4. e4 {[%emt 0:00:15]} O-O {[%emt 0:00:00]} 5. Nf3 {[%emt 0:02:03]} d6 {[%emt 0:00:07]} 6. Be2 {[%emt 0:01:41]} e5 {[%emt 0:00:07]} 7. d5 {[%emt 0:00:22]} a5 {[%emt 0:00:06]} 8. Bg5 {[%emt 0:00:14]} Na6 {[%emt 0:00:28]} 9. O-O {[%emt 0:00:10]} h6 {[%emt 0:01:24]} 10. Bh4 {[%emt 0:01:02]} Qe8 {[%emt 0:01:24]} 11. Nd2 {[%emt 0:00:33]} Bd7 {[%emt 0:01:51]} 12. b3 {[%emt 0:01:43]} Nh7 {[%emt 0:00:27]} 13. a3 {[%emt 0:00:22]} h5 {[%emt 0:00:17]} 14. f3 {[%emt 0:00:07]} Bh6 {[%emt 0:00:31]} 15. Rb1 {[%emt 0:00:20]} Be3+ {[%emt 0:00:44]} 16. Bf2 {[%emt 0:00:06]} Bd4 {[%emt 0:06:39]} 17. Bxd4 {[%emt 0:11:11]} exd4 {[%emt 0:00:05]} 18. Nb5 {[%emt 0:00:05]} Bxb5 {[%emt 0:01:26]} 19. cxb5 {[%emt 0:00:24]} Nc5 {[%emt 0:00:07]} 20. Nc4 {[%emt 0:01:42]} d3 {[%emt 0:08:58]} 21. Bxd3 {[%emt 0:00:11]} Nxd3 {[%emt 0:00:37]} 22. Qxd3 {[%emt 0:00:07]} Qxb5 {[%emt 0:00:06]} 23. Qd4 {[%emt 0:04:06]} b6 {[%emt 0:01:35]} 24. Rfc1 {[%emt 0:14:11]} Qc5 {[%emt 0:00:19]} 25. Qf2 {[%emt 0:08:49]} Ra7 {[%emt 0:04:14]} 26. Ne3 {[%emt 0:02:33]} Qxa3 {[%emt 0:01:24]} 27. Nc2 {[%emt 0:01:40]} Qa2 {[%emt 0:00:08]} 28. Qd4 {[%emt 0:01:29]} 1-0

[Event "SVK Extraliga 2019-20"]
[Site "Slovakia"]
[Date "2019.11.23"]
[Round "3"]
[White "Kociscak, Jiri"]
[Black "Mrva, Martin"]
[Result "1-0"]
[ECO "A41"]
[WhiteElo "2510"]
[BlackElo "2402"]
[Annotator "ChessBase"]
[PlyCount "83"]
[EventDate "2019.10.19"]
[EventType "team-tourn"]
[EventCountry "SVK"]
[SourceTitle "playchess.com"]
[Source "ChessBase"]
[SourceQuality "1"]
[WhiteTeam "Zilina"]
[BlackTeam "Snina"]
[TimeControl "40/5400+30:1800+30"]

1. d4 {[%emt 0:01:11]} d6 {[%emt 0:00:37]} 2. c4 {[%emt 0:00:07]} Nc6 {[%emt 0:00:43]} 3. Nc3 {[%emt 0:01:09]} e5 {[%emt 0:00:56]} 4. d5 {[%emt 0:00:06]} Nce7 {[%emt 0:02:25]} 5. e4 {[%emt 0:00:08]} h5 {[%emt 0:07:25]} 6. Nf3 {[%emt 0:10:24]} Nh6 {[%emt 0:06:08]} 7. c5 {[%emt 0:00:17]} a6 {[%emt 0:06:20]} 8. h3 {[%emt 0:04:49]} Ng6 {[%emt 0:03:09]} 9. Qa4+ {[%emt 0:04:33]} Bd7 {[%emt 0:10:05]} 10. c6 {[%emt 0:00:07]} bxc6 {[%emt 0:00:04]} 11. dxc6 {[%emt 0:00:04]} Be6 {[%emt 0:00:07]} 12. Ng5 {[%emt 0:06:59]} Be7 {[%emt 0:04:31]} 13. Nxe6 {[%emt 0:00:25]} fxe6 {[%emt 0:00:06]} 14. Be2 {[%emt 0:01:36]} Ng8 {[%emt 0:05:19]} 15. Bc4 {[%emt 0:04:17]} Nf8 {[%emt 0:09:22]} 16. O-O {[%emt 0:01:58]} g5 {[%emt 0:07:12]} 17. Qd1 {[%emt 0:04:43]} Bf6 {[%emt 0:02:39]} 18. Be2 {[%emt 0:02:43]} g4 {[%emt 0:00:22]} 19. hxg4 {[%emt 0:00:33]} hxg4 {[%emt 0:01:22]} 20. Bxg4 {[%emt 0:00:26]} Qe7 {[%emt 0:00:10]} 21. Bh3 {[%emt 0:10:56]} Qg7 {[%emt 0:00:46]} 22. Qg4 {[%emt 0:00:19]} Qxg4 {[%emt 0:01:03]} 23. Bxg4 {[%emt 0:00:05]} Ne7 {[%emt 0:00:08]} 24. Bd1 {[%emt 0:01:34]} Nfg6 {[%emt 0:02:51]} 25. Be3 {[%emt 0:15:25]} Kf7 {[%emt 0:01:34]} 26. Ne2 {[%emt 0:02:02]} Rh7 {[%emt 0:04:25]} 27. Bb3 {[%emt 0:04:15]} Rah8 {[%emt 0:07:22]} 28. g3 {[%emt 0:06:50]} Nxc6 {[%emt 0:08:14]} 29. Rfc1 {[%emt 0:01:14]} Nd4 {[%emt 0:00:46]} 30. Bxd4 {[%emt 0:00:10]} exd4 {[%emt 0:00:10]} 31. Rxc7+ {[%emt 0:00:05]} Be7 {[%emt 0:00:33]} 32. Kf1 {[%emt 0:02:22]} Ne5 {[%emt 0:00:32]} 33. Ng1 {[%emt 0:02:41]} Rh1 {[%emt 0:01:31]} 34. Ke2 {[%emt 0:01:51]} R8h2 {[%emt 0:01:28]} 35. Rd1 {[%emt 0:06:47]} d3+ {[%emt 0:01:37]} 36. Ke3 {[%emt 0:00:20]} Ng4+ {[%emt 0:00:07]} 37. Kf3 {[%emt 0:01:14]} Nxf2 {[%emt 0:00:27]} 38. Rf1 {[%emt 0:01:34]} d5 {[%emt 0:04:53]} 39. exd5 {[%emt 0:01:07]} Kf6 {[%emt 0:00:32]} 40. Rxf2 {[%emt 0:00:34]} Rxf2+ {[%emt 0:01:04]} 41. Kxf2 {[%emt 0:30:09]} exd5 {[%emt 0:30:40]} 42. Kg2 {[%emt 0:00:57]} 1-0